bitfinex/quotes_ETHUSD_20250827
["timestamp","ask_amount","ask_price","bid_price","bid_amount"]
[1756302266452,2.15793608,4634.1,4633.8,0.021]
[1756302266725,2.15816781,4633.6,4633.3,0.001]
[1756302266993,5.81824232,4633.4,4633.3,0.001]
[1756302267153,2.15847525,4632.9,4631.8,0.02]
[1756302267475,3.83467287,4632.9,4631.8,0.02]
[1756302267850,4.28607287,4632.9,4631.8,0.02]
[1756302268056,7.28607287,4632.9,4631.8,0.02]
[1756302268254,7.26987525,4632.9,4631.8,0.02]
[1756302268450,4.66,4632.9,4631.8,0.02]
[1756302268686,7.92987525,4632.9,4631.8,0.02]
[1756302269081,6.81847525,4632.9,4631.8,0.02]
[1756302269259,4.66,4632.9,4631.8,0.02]
[1756302269456,0.33793604,4633.3,4631.9,2.15890514]
[1756302269692,2.15728927,4635.5,4631.8,0.02]
[1756302269693,0.01619762,4633.5,4632.3,0.4565]
[1756302269885,2.15768254,4634.7,4632.9,2.15847525]
[1756302270087,0.01619762,4634.6,4632.4,0.4565]
[1756302270287,0.01619762,4634.6,4632.4,2.61520765]
[1756302270288,2.15787664,4634.2,4632.4,2.61520765]
[1756302270592,7.36119762,4634.1,4631.8,2.17898027]
[1756302270756,7.36119762,4634.1,4631.8,0.02]
[1756302270757,0.66,4633.9,4631.8,0.02]
[1756302270957,3.66,4633.6,4631.8,0.02]
[1756302271163,2.15847525,4632.9,4631.8,0.02]
[1756302271491,12.96507287,4632.9,4631.8,0.02]
[1756302271658,13.60887525,4632.9,4631.8,0.02]
[1756302271871,7.92987525,4632.9,4631.8,0.02]
[1756302272170,13.60687525,4632.9,4631.8,0.02]
[1756302272666,13.03887525,4632.9,4631.8,0.02]
[1756302272867,10.429,4632.9,4631.8,0.02]
[1756302273083,13.03887525,4632.9,4631.8,0.02]
[1756302273378,12.58747525,4632.9,4631.8,0.02]
[1756302273589,12.57847525,4632.9,4631.8,0.02]
[1756302273770,12.57347525,4632.9,4631.8,0.02]
[1756302273969,13.02487525,4632.9,4631.8,0.02]
[1756302274171,12.57347525,4632.9,4631.8,0.02]
[1756302274775,4.768,4632.9,4631.8,2.17896549]
[1756302274996,0.108,4632.9,4632.8,2.63502184]
[1756302275202,0.108,4633.5,4632.8,1.06386333]
[1756302275401,0.108,4633.5,4632.8,0.5845]
[1756302275602,7.288,4634.3,4632.8,0.02]
[1756302275804,0.108,4632.9,4632.8,0.02]
[1756302276397,0.108,4632.9,4632.8,0.4765]
[1756302276603,0.108,4633.1,4633.0,2.15842866]
[1756302276792,0.108,4633.1,4633.0,2.61492866]
[1756302277915,0.108,4633.4,4633.1,2.15838207]
[1756302278094,1.66,4634.7,4633.2,0.47808335]
[1756302278291,1.66,4634.7,4634.4,2.15773682]
[1756302278605,1.66,4634.7,4633.3,2.1582889]
[1756302278917,1.66,4634.7,4633.2,0.4565]
[1756302278918,0.01619762,4634.6,4633.2,0.4565]
[1756302279213,0.108,4633.4,4633.3,2.15828149]
[1756302279412,0.108,4633.4,4633.2,2.61482824]
[1756302279589,0.108,4633.4,4633.2,0.4565]
[1756302279794,0.108,4633.4,4632.8,0.02]
[1756302280114,0.108,4632.9,4632.8,0.02]
[1756302281425,3.92647525,4632.9,4632.8,0.02]
[1756302281713,3.81847525,4632.9,4632.8,0.02]
[1756302281882,1.66,4632.9,4632.8,0.02]
[1756302282487,3.81847525,4632.9,4632.8,0.02]
[1756302282682,3.83467287,4632.9,4632.8,0.02]
[1756302283094,6.83467287,4632.9,4632.8,0.02]
[1756302283279,6.81847525,4632.9,4632.8,0.02]
[1756302283487,6.81847525,4632.9,4632.8,0.021]
[1756302283812,4.66,4632.9,4632.8,0.021]
[1756302284014,10.19,4632.9,4632.8,0.021]
[1756302284321,12.34847525,4632.9,4632.8,0.021]
[1756302284617,1.66,4632.9,4632.8,0.021]
[1756302285215,1.66,4633.6,4632.8,0.4775]
[1756302285435,0.01619762,4633.5,4632.8,0.021]
[1756302285938,2.1583269,4633.3,4632.8,0.021]
[1756302286230,7.6735471,4633.2,4632.8,0.021]
[1756302286434,2.15838207,4633.1,4632.8,0.021]
[1756302286736,2.15847525,4632.9,4632.8,0.021]
[1756302287821,6.26987525,4632.9,4632.8,1e-08]
[1756302289092,10.62447525,4632.9,4632.8,1e-08]
[1756302289289,10.96244355,4632.9,4632.8,1e-08]
[1756302289486,3.3379683,4632.9,4632.8,1e-08]
[1756302289682,11.73187525,4632.9,4632.8,1e-08]
[1756302290117,5.15847525,4632.9,4632.8,1e-08]
[1756302290302,10.61347525,4632.9,4632.8,1e-08]
[1756302290516,11.06147525,4632.9,4632.8,1e-08]
[1756302290894,11.72147525,4632.9,4632.8,1e-08]
[1756302291099,12.06329809,4632.9,4632.8,1e-08]
[1756302291407,11.71247525,4632.9,4632.8,1e-08]
[1756302291598,11.82047525,4632.9,4632.8,1e-08]
[1756302292497,8.82047525,4632.9,4632.8,1e-08]
[1756302292703,7.58947525,4632.9,4632.8,1e-08]
[1756302292925,0.33794861,4633.3,4632.8,1e-08]
[1756302293094,0.01619762,4633.2,4632.8,1e-08]
[1756302293425,0.002,4633.9,4633.0,2.15842419]
[1756302293426,7.10619762,4633.6,4633.0,2.15842419]
[1756302293588,0.002,4633.9,4632.9,0.4614]
[1756302294097,0.02,4633.8,4633.7,2.15810259]
[1756302294300,0.02,4633.8,4633.7,2.61950259]
[1756302294486,0.02,4633.8,4633.7,2.64108361]
[1756302294687,0.02,4633.8,4633.1,2.61977385]
[1756302294902,0.02,4633.8,4633.5,2.15819562]
[1756302295110,0.02,4633.8,4633.7,2.15810259]
[1756302295298,0.002,4633.9,4633.8,2.15805602]
[1756302295495,0.002,4633.9,4633.8,2.61945602]
[1756302295728,0.002,4634.4,4634.3,2.15782318]
[1756302296036,0.002,4634.4,4634.0,2.15796288]
[1756302296229,0.002,4634.4,4633.7,1.66]
[1756302296400,0.002,4634.4,4634.0,0.4614]
[1756302296599,0.002,4634.4,4634.3,2.15782318]
[1756302297016,0.002,4634.4,4634.3,0.4614]
[1756302297354,0.0012,4634.4,4634.3,2.61922318]
[1756302297521,0.0012,4634.4,4634.3,0.4614]
[1756302297717,0.0012,4634.4,4634.3,2.61922318]
[1756302297918,0.0012,4634.4,4634.3,0.4614]
[1756302298537,0.0012,4634.4,4634.3,2.61922318]
[1756302298945,0.0012,4634.4,4633.2,0.4614]
[1756302299157,0.0012,4634.4,4633.8,2.15805491]
[1756302299307,0.0012,4634.4,4633.2,2.61969682]
[1756302299646,0.0012,4634.4,4633.2,0.4614]
[1756302300034,0.0012,4634.4,4633.3,0.02158288]
[1756302300345,0.0012,4634.4,4634.1,2.15789724]
[1756302300514,0.0012,4634.4,4634.3,2.15782318]
[1756302300718,0.01619762,4636.9,4636.1,2.15697583]
[1756302300922,0.01619762,4636.9,4635.2,1.66]
[1756302301259,0.01619762,4636.9,4634.9,1.66]
[1756302301421,2.108,4637.3,4634.7,1.66]
[1756302301422,0.01619762,4637.2,4634.7,1.66]
[1756302301741,5.15656674,4637.0,4635.4,2.15727854]
[1756302301944,0.01619762,4636.9,4635.4,0.4614]
[1756302302147,0.01619762,4636.8,4635.6,2.15721805]
[1756302302440,1.66,4637.1,4635.6,2.15721805]
[1756302302645,1.66,4637.1,4635.5,2.61864053]
[1756302302646,0.108,4635.6,4635.5,2.61864053]
[1756302302807,0.108,4636.0,4635.7,2.15717151]
[1756302303004,0.108,4636.0,4635.3,0.108]
[1756302303240,0.108,4635.7,4635.4,2.15729051]
[1756302303413,0.108,4635.7,4635.6,2.15721805]
[1756302303819,0.01619762,4637.0,4635.9,2.15705346]
[1756302304116,2.15615308,4637.9,4635.9,2.15705346]
[1756302304117,0.022,4637.8,4636.0,0.02157031]
[1756302304324,0.108,4636.9,4636.2,0.108]
[1756302304523,0.108,4636.9,4636.4,2.1568402]
[1756302304726,0.108,4636.9,4636.7,2.1566639]
[1756302304935,0.01619762,4637.7,4636.4,2.15683615]
[1756302305140,0.01619762,4637.7,4636.1,0.4614]
[1756302305361,0.108,4637.1,4636.2,0.48930075]
[1756302305572,0.108,4637.1,4636.5,0.108]
[1756302305852,0.108,4636.2,4636.1,2.15698539]
[1756302306154,0.108,4636.2,4635.2,0.4614]
[1756302306464,0.01619762,4636.1,4635.1,1.66]
[1756302306682,0.01619762,4636.1,4635.3,2.15735392]
[1756302306971,0.01619762,4636.1,4633.8,0.108]
[1756302306972,0.108,4635.4,4633.8,0.108]
[1756302307256,0.01619762,4635.8,4634.9,2.15753781]
[1756302307561,0.01619762,4635.8,4634.1,0.4614]
[1756302307732,0.108,4634.8,4634.2,2.15786975]
[1756302307917,0.108,4634.8,4634.1,0.5694]
[1756302308279,0.108,4634.8,4634.7,2.15763695]
[1756302308558,0.108,4634.8,4633.2,7.6534397]
[1756302308559,5.387,4634.8,4630.1,5.188]
[1756302308766,3.0,4634.7,4631.9,0.4614]
[1756302308946,3.0,4634.7,4631.1,0.4614]
[1756302308947,2.15842806,4633.1,4631.1,0.4614]
[1756302309117,2.17462778,4633.0,4631.8,2.17997655]
[1756302309316,2.17462778,4633.0,4631.8,0.021]
[1756302309317,2.60647525,4632.9,4631.8,0.021]
[1756302309566,6.26647525,4632.9,4631.8,0.021]
[1756302309715,2.15894125,4631.9,4631.8,0.021]
[1756302309914,2.15894125,4631.9,4630.1,0.001]
[1756302309915,35.15898786,4631.8,4630.1,0.001]
[1756302310146,2.15950103,4630.7,4630.1,0.001]
[1756302310355,3.0,4630.3,4629.8,0.02]
[1756302310557,0.66,4629.4,4628.8,1e-08]
[1756302310723,2.16034046,4628.9,4628.8,1e-08]
[1756302311060,13.42917154,4628.9,4628.8,1e-08]
[1756302311259,5.94663346,4628.9,4628.8,1e-08]
[1756302311477,1.66,4628.9,4628.8,1e-08]
[1756302311819,2.12419762,4628.9,4628.8,1e-08]
[1756302312023,2.78419762,4628.9,4628.8,1e-08]
[1756302312220,2.12419762,4628.9,4628.8,1e-08]
[1756302312522,4.67619762,4628.9,4628.8,1e-08]
[1756302312718,1.66,4628.9,4628.8,1e-08]
[1756302312949,0.01619762,4628.9,4628.8,1e-08]
[1756302313340,0.01619762,4629.1,4628.8,1e-08]
[1756302313540,1.108,4628.9,4628.8,1e-08]
[1756302313719,0.01619762,4629.0,4628.8,1e-08]
[1756302313919,5.297,4628.9,4628.8,1e-08]
[1756302314159,8.297,4628.9,4628.8,1e-08]
[1756302314461,1.66,4630.1,4628.8,0.46140001]
[1756302314658,0.33825552,4629.5,4628.8,1e-08]
[1756302314821,0.01619762,4629.4,4628.8,1e-08]
[1756302315339,0.01619762,4629.9,4628.8,1e-08]
[1756302315543,1.661,4631.2,4628.9,0.4614]
[1756302315722,0.35437018,4631.1,4628.9,0.4614]
[1756302315926,3.35437018,4631.1,4628.9,0.4614]
[1756302316423,0.448,4631.1,4628.9,0.4614]
[1756302316632,2.15942025,4630.9,4629.3,2.16013419]
[1756302316844,0.01619762,4630.8,4628.9,0.4614]
[1756302317031,5.275,4630.7,4629.8,2.15991157]
[1756302317234,0.01619762,4630.6,4628.9,0.4614]
[1756302317432,0.67619762,4630.6,4629.0,2.16028914]
[1756302317631,2.15959399,4630.5,4628.8,1e-08]
[1756302317838,2.15968727,4630.3,4628.9,2.16033105]
[1756302318034,1.67719762,4630.2,4629.2,2.16018902]
[1756302318236,1.67719762,4630.2,4628.8,2.16036841]
[1756302318237,1.67719762,4630.2,4628.8,0.46140001]
[1756302318422,0.66,4630.1,4628.8,1e-08]
[1756302318744,2.12519762,4630.2,4628.8,1e-08]
[1756302318745,0.108,4628.9,4628.8,1e-08]
[1756302319121,0.108,4628.9,4628.8,0.46140001]
[1756302319327,0.108,4628.9,4628.8,1e-08]
[1756302319765,0.12419762,4628.9,4628.8,1e-08]
[1756302320637,0.108,4628.9,4628.8,1e-08]
[1756302320843,0.12419762,4628.9,4628.8,0.00100001]
[1756302321039,0.108,4628.9,4628.8,2.63348715]
[1756302321265,0.108,4629.3,4629.2,2.16020046]
[1756302321472,0.01619762,4630.5,4629.2,0.4721]
[1756302321642,0.01619762,4630.5,4628.8,0.48039665]
[1756302321643,0.108,4629.5,4628.8,0.00100001]
[1756302321972,1.67639762,4629.4,4628.8,0.00100001]
[1756302322139,1.661,4630.1,4628.8,0.00100001]
[1756302322340,2.16005497,4629.6,4628.8,0.00100001]
[1756302322543,0.01539762,4629.5,4628.8,0.00100001]
[1756302322744,0.01539762,4629.5,4627.8,0.021]
[1756302322745,30.0,4628.8,4624.3,2.16245821]
[1756302323073,21.423,4629.4,4622.8,0.02]
[1756302323074,2.16150211,4626.5,4623.3,2.16291705]
[1756302323230,10.55787391,4626.4,4622.9,0.4721]
[1756302323432,0.66,4626.1,4623.6,0.4721]
[1756302323631,0.01539762,4626.0,4624.2,2.16252259]
[1756302323929,6.29014149,4625.9,4623.6,2.63488539]
[1756302324159,8.358,4625.9,4623.6,0.4721]
[1756302324485,5.356,4625.9,4624.2,0.4721]
[1756302324657,5.8244,4625.9,4623.4,0.4721]
[1756302324862,5.356,4625.9,4624.2,2.63461439]
[1756302325165,5.356,4625.9,4623.3,3.0]
[1756302325330,5.8244,4625.9,4623.8,0.4921]
[1756302325638,5.345,4625.9,4625.0,2.16216149]
[1756302325839,5.345,4625.9,4624.7,2.16228369]
[1756302325840,1.662,4627.0,4625.9,2.16174149]
[1756302326046,0.01539762,4626.9,4626.0,0.21817415]
[1756302326226,0.01539762,4626.9,4625.6,0.4721]
[1756302326627,0.01539762,4626.9,4626.8,2.16132099]
[1756302326833,7.001,4627.0,4626.9,2.16127428]
[1756302327327,5.339,4627.0,4626.9,2.16127428]
[1756302328030,5.339,4627.0,4626.0,2.16169476]
[1756302328258,0.01539762,4626.9,4625.7,0.4721]
[1756302328444,0.01539762,4626.9,4626.3,2.16153223]
[1756302328639,0.01539762,4626.9,4626.6,2.16140435]
[1756302328867,1.662,4626.8,4625.7,0.4721]
[1756302329068,0.01539762,4626.7,4625.7,0.4721]
[1756302329236,0.01539762,4626.7,4625.7,2.16183038]
[1756302329433,0.01539762,4626.7,4625.0,0.4721]
[1756302329634,0.01539762,4626.7,4624.8,0.02]
[1756302329635,3.66,4626.3,4624.8,0.02]
[1756302329845,0.66,4626.0,4624.8,0.02]
[1756302330072,1.67739762,4625.9,4624.8,0.02]
[1756302330374,1.67739762,4625.9,4625.8,2.18178823]
[1756302330375,1.662,4625.9,4625.8,2.18178823]
[1756302330579,1.662,4625.9,4625.8,0.02]
[1756302330758,1.67739762,4625.9,4625.8,0.02]
[1756302330960,2.16080571,4628.0,4625.8,0.02]
[1756302330961,1.662,4626.6,4625.8,0.4921]
[1756302331161,5.296,4626.4,4625.8,0.4921]
[1756302331346,5.293,4627.0,4626.8,2.16132099]
[1756302331546,5.293,4627.0,4626.7,2.16136447]
[1756302331752,5.293,4627.0,4626.2,0.4721]
[1756302331938,5.289,4627.2,4627.0,2.16121]
[1756302332270,5.195,4628.5,4625.8,0.02]
[1756302332271,0.33834558,4627.7,4627.6,2.16094735]
[1756302332472,5.31,4627.8,4627.3,2.16108745]
[1756302332679,0.108,4627.2,4626.3,0.108]
[1756302332973,0.108,4627.2,4627.1,2.16118086]
[1756302333172,0.108,4627.2,4627.1,2.63328086]
[1756302333474,0.02,4627.8,4627.7,2.16090066]
[1756302333640,0.02,4627.8,4626.4,0.6491]
[1756302333838,0.02,4627.8,4626.8,3.0]
[1756302334039,0.02,4627.8,4627.0,2.16118305]
[1756302334266,0.02,4627.8,4626.5,0.36491]
[1756302334477,0.01539762,4627.7,4626.5,0.36491]
[1756302334656,0.02,4627.8,4626.5,0.36491]
[1756302334972,6.94639762,4627.7,4625.8,0.02]
[1756302335146,6.931,4627.7,4625.9,0.4721]
[1756302335351,1.662,4627.7,4625.9,0.4721]
[1756302335575,1.662,4627.7,4626.0,3.0]
[1756302335740,0.01539762,4627.6,4626.7,2.1613616]
[1756302335936,2.16103577,4627.5,4626.0,2.16169476]
[1756302336165,0.01539762,4627.4,4625.9,0.4721]
[1756302336366,2.16113416,4627.2,4625.8,0.02]
[1756302336541,0.66,4627.0,4625.8,0.02]
[1756302336754,2.16160459,4626.2,4625.8,0.02]
[1756302336985,9.1130663,4626.1,4625.8,0.02]
[1756302337167,2.16174149,4625.9,4625.8,0.02]
[1756302337346,0.01539762,4625.9,4625.8,0.02]
[1756302337674,1.67739762,4626.0,4625.8,0.02]
[1756302338173,1.662,4626.8,4625.9,0.4721]
[1756302338377,5.263,4627.2,4625.9,0.4721]
[1756302338378,0.01539762,4627.1,4625.9,2.63381428]
[1756302338579,0.01539762,4627.1,4625.9,0.4721]
[1756302338884,0.01539762,4627.1,4625.8,0.02]
[1756302339173,0.01539762,4627.1,4626.5,0.001]
[1756302339677,5.26939762,4627.1,4626.5,0.001]
[1756302339851,5.254,4627.1,4626.5,0.001]
[1756302340056,0.01539762,4627.0,4626.5,0.001]
[1756302340458,5.239,4627.6,4626.6,0.4721]
[1756302340656,0.33839215,4627.7,4626.7,2.16136771]
[1756302340860,0.33839215,4627.7,4626.8,0.4937132]
[1756302341062,0.01539762,4629.7,4628.7,2.16043381]
[1756302341256,0.02,4629.8,4628.7,2.63253381]
[1756302341461,0.02,4629.8,4628.1,1.662]
[1756302341670,1.662,4629.4,4627.5,0.4721]
[1756302341901,0.01539762,4628.7,4627.5,0.4721]
[1756302342062,0.01539762,4629.1,4627.5,0.4721]
[1756302342272,0.01539762,4629.3,4628.7,2.16043381]
[1756302342457,0.02,4629.8,4628.7,2.63253381]
[1756302342658,0.01539762,4629.7,4628.7,0.4721]
[1756302342862,0.01539762,4629.7,4627.0,0.4721]
[1756302342863,2.16021655,4629.2,4627.0,0.4721]
[1756302343050,0.01539762,4628.7,4627.3,2.16105249]
[1756302343248,0.01539762,4628.7,4627.0,0.4721]
[1756302343580,0.01539762,4628.7,4626.6,2.32525931]
[1756302343581,0.108,4627.8,4627.7,2.16090066]
[1756302343772,0.108,4627.8,4627.7,2.63300066]
[1756302344267,0.03539762,4628.8,4628.2,2.16065792]
[1756302344468,0.01539762,4628.7,4627.3,2.16106102]
[1756302344672,0.01539762,4628.7,4627.0,3.0]
[1756302344850,0.108,4627.6,4626.9,0.4721]
[1756302345048,0.108,4627.2,4626.7,1.662]
[1756302345394,0.108,4627.2,4626.8,0.4721]
[1756302345756,0.108,4626.9,4626.5,0.001]
[1756302345948,0.108,4626.6,4626.5,0.001]
[1756302346288,0.1072,4626.7,4626.5,0.4731]
[1756302346491,0.1072,4626.7,4626.6,2.16141442]
[1756302346700,1.662,4628.4,4626.6,0.90449019]
[1756302346987,0.108,4627.4,4626.6,0.5801]
[1756302347187,0.01539762,4628.3,4626.6,0.4721]
[1756302347188,0.108,4627.1,4626.6,0.4721]
[1756302347346,0.108,4627.1,4627.0,2.16122757]
[1756302347549,0.108,4627.1,4627.0,2.63332757]
[1756302347750,0.03539762,4628.8,4627.9,2.1607941]
[1756302348047,0.03539762,4628.8,4626.8,1.77]
[1756302348275,0.03539762,4628.8,4626.8,0.02]
[1756302348276,0.108,4627.4,4626.8,0.02]
[1756302348593,2.16070125,4628.2,4626.8,0.02]
[1756302348594,0.108,4626.9,4626.8,0.02]
[1756302349352,0.108,4626.9,4626.8,2.65342099]
[1756302349592,0.3383318,4628.4,4627.0,3.0]
[1756302349760,1.682,4628.8,4628.4,2.16056951]
[1756302349761,0.02,4628.8,4628.4,2.16056951]
[1756302350083,0.02,4628.8,4627.2,8.162]
[1756302350294,0.02,4628.8,4628.7,2.16043381]
[1756302350452,0.02,4628.8,4628.7,6.82243381]
[1756302350799,0.02,4628.8,4628.7,7.28633381]
[1756302350980,0.01539762,4630.9,4629.7,2.15996716]
[1756302351298,0.108,4630.2,4629.7,2.15996716]
[1756302351492,0.002,4631.1,4629.7,3.82196716]
[1756302351666,0.002,4631.1,4629.7,7.89486779]
[1756302351863,0.002,4631.1,4629.7,4.89486779]
[1756302352187,0.002,4631.1,4629.7,2.15996716]
[1756302352385,0.01539762,4630.7,4629.7,2.15996716]
[1756302352555,0.03539762,4630.8,4629.7,2.15996716]
[1756302352750,0.02,4630.8,4629.7,7.28586716]
[1756302352951,0.02,4630.8,4630.7,2.15950072]
[1756302353376,0.02,4630.8,4630.7,2.64499572]
[1756302353590,0.02,4630.8,4630.7,3.27005803]
[1756302353799,0.02,4630.8,4630.7,2.62340072]
[1756302354368,0.02,4630.8,4630.7,2.64499572]
[1756302354568,0.02,4630.8,4630.7,5.64499572]
[1756302354783,0.02,4630.8,4630.7,2.15950072]
[1756302355397,0.02,4630.8,4630.3,2.15965786]
[1756302355702,0.01539762,4630.7,4629.7,0.4639]
[1756302355868,0.01539762,4630.7,4629.6,1.662]
[1756302356201,0.01539762,4630.7,4629.3,3.0]
[1756302356377,0.02,4630.8,4630.2,2.15969836]
[1756302356580,0.02,4630.8,4630.2,2.15973322]
[1756302356774,0.02,4630.8,4629.3,3.0]
[1756302356993,0.01539762,4630.7,4629.4,0.7396504]
[1756302357175,0.02,4630.8,4629.4,0.7396504]
[1756302357176,0.02,4630.8,4630.4,2.15963867]
[1756302357497,0.02,4630.8,4629.5,0.4639]
[1756302357796,2.1794648,4630.8,4629.5,0.4639]
[1756302358001,2.1794648,4630.8,4628.8,3.0]
[1756302358002,0.01539762,4630.7,4628.8,3.0]
[1756302358295,2.15963468,4630.5,4629.3,2.16014576]
[1756302358495,0.01539762,4630.4,4629.5,2.16005377]
[1756302358699,2.17504398,4630.4,4629.2,2.16016294]
[1756302358865,0.01539762,4630.4,4628.6,0.4639]
[1756302359072,1.662,4630.3,4629.8,0.02]
[1756302359273,0.01539762,4630.2,4629.8,0.02]
[1756302359902,2.15987386,4629.9,4629.8,0.02]
[1756302360100,2.62387148,4629.9,4629.8,0.02]
[1756302360404,0.01539762,4629.9,4629.8,0.02]
[1756302360570,2.62387148,4629.9,4629.8,0.02]
[1756302360765,0.01539762,4629.9,4629.8,0.02]
[1756302360965,2.15987386,4629.9,4629.8,0.02]
[1756302361199,2.62387148,4629.9,4629.8,0.02]
[1756302361402,2.17527148,4629.9,4629.8,0.02]
[1756302362100,0.12339762,4629.9,4629.8,0.02]
[1756302362308,1.662,4629.9,4629.8,0.02]
[1756302362474,1.67739762,4629.9,4629.8,0.02]
[1756302362807,3.83727148,4629.9,4629.8,0.02]
[1756302362986,1.67739762,4629.9,4629.8,0.02]
[1756302363371,1.662,4629.9,4629.8,0.02]
[1756302364075,1.67739762,4629.9,4629.8,0.02]
[1756302364571,0.01539762,4630.5,4629.8,0.02]
[1756302364778,0.01539762,4630.5,4630.2,2.15972523]
[1756302364976,0.03539762,4630.8,4629.4,2.16010714]
[1756302365178,0.03539762,4630.8,4630.7,2.15950072]
[1756302365179,0.02,4630.8,4630.7,2.15950072]
[1756302365806,0.002,4631.3,4631.0,2.15936082]
[1756302366107,0.01539762,4634.6,4632.2,2.15878115]
[1756302366280,1e-08,4632.8,4632.7,2.15856843]
[1756302366473,0.01539762,4635.3,4632.7,0.02158568]
[1756302366778,0.02,4634.8,4632.9,3.0]
[1756302366978,0.02,4634.8,4634.7,2.15763695]
[1756302367311,0.02,4634.8,4634.7,4.28253695]
[1756302367492,0.02,4634.8,4634.7,3.81863695]
[1756302367804,0.02,4634.8,4634.0,1.661]
[1756302367983,0.02,4634.8,4634.6,2.62156871]
[1756302368370,0.02,4634.8,4634.7,3.4639]
[1756302368821,0.02,4634.8,4634.7,0.4639]
[1756302369707,0.02,4634.8,4634.3,3.0]
[1756302369921,0.02,4634.8,4634.6,2.15765238]
[1756302370210,0.02,4634.8,4634.1,3.0]
[1756302370375,0.02,4634.8,4634.6,2.15768159]
[1756302370575,0.02,4634.8,4634.7,5.005]
[1756302370796,0.02,4634.8,4634.7,5.4689]
[1756302370998,0.02,4634.8,4634.7,0.4639]
[1756302371272,0.0192,4634.8,4634.6,2.15768129]
[1756302371614,0.0192,4634.8,4634.1,3.0]
[1756302371940,0.0192,4634.8,4634.0,6.656]
[1756302372113,0.0192,4634.8,4634.0,1.661]
[1756302372279,0.0192,4634.8,4634.7,2.15763695]
[1756302373935,0.0192,4634.8,4634.7,5.64311331]
[1756302374114,0.0192,4634.8,4634.7,5.62153695]
[1756302374612,0.0192,4634.8,4634.7,6.28153695]
[1756302374911,0.02,4635.8,4635.7,2.15717151]
[1756302375119,0.02,4635.8,4635.7,12.07724648]
[1756302375273,0.02,4635.8,4635.7,12.51957477]
[1756302375477,0.02,4635.8,4635.7,7.55157477]
[1756302375724,0.02,4635.8,4635.7,7.28107151]
[1756302376225,0.02,4635.8,4635.7,12.23907151]
[1756302376440,0.02,4635.8,4634.9,1.66]
[1756302376605,0.02,4635.8,4635.7,2.15717151]
[1756302377307,0.02,4635.8,4635.7,2.64264322]
[1756302377508,0.02,4635.8,4635.7,6.61783211]
[1756302377833,0.02,4635.8,4635.7,6.5962604]
[1756302378422,0.022,4635.8,4635.7,6.5962604]
[1756302378623,0.022,4635.8,4635.7,10.09617151]
[1756302379127,0.022,4635.8,4635.7,2.15717151]
[1756302379310,0.022,4635.8,4635.1,3.0]
[1756302379513,0.022,4635.8,4635.3,2.15733161]
[1756302379844,0.022,4635.8,4635.7,2.15717151]
[1756302380133,0.022,4635.8,4635.7,7.08717151]
[1756302380527,0.022,4635.8,4635.7,2.15717151]
[1756302381017,0.022,4635.8,4635.2,4.921]
[1756302381356,0.022,4635.8,4635.7,2.15717151]
[1756302381650,0.022,4635.8,4635.4,2.15728719]
[1756302381847,0.022,4635.8,4635.0,1.66]
[1756302382136,0.022,4635.8,4635.1,4.919]
[1756302382346,0.022,4635.8,4635.7,2.15717151]
[1756302382903,0.022,4635.8,4635.0,6.566]
[1756302383159,0.01539762,4635.7,4635.1,2.1574103]
[1756302383343,0.022,4635.8,4635.1,4.913]
[1756302383558,0.022,4635.8,4635.2,2.17897825]
[1756302383848,0.022,4635.8,4635.2,0.92062783]
[1756302384059,0.022,4635.8,4635.7,2.15717151]
[1756302384346,0.022,4635.8,4635.7,7.06117151]
[1756302385145,0.022,4635.8,4635.7,7.62347151]
[1756302385520,0.022,4635.8,4635.7,2.26517151]
[1756302385722,0.022,4635.8,4632.8,0.02]
[1756302385936,0.4562,4635.7,4633.1,1.659]
[1756302386140,0.108,4634.9,4633.5,0.108]
[1756302386336,0.01539762,4634.8,4633.3,2.891]
[1756302386650,0.01539762,4634.8,4632.8,0.02]
[1756302386651,0.108,4633.6,4632.8,0.02]
[1756302386876,0.108,4632.9,4632.8,0.02]
[1756302388361,0.108,4632.9,4632.8,2.17852184]
[1756302388952,0.108,4632.9,4632.8,0.02]
[1756302389362,2.72267525,4632.9,4632.8,0.02]
[1756302389529,2.15893444,4632.0,4631.8,0.02]
[1756302389722,0.12339762,4631.9,4631.8,0.02]
[1756302389925,0.108,4631.9,4631.8,0.02]
[1756302390351,1.67539762,4632.9,4631.8,0.02]
[1756302390624,0.108,4632.1,4631.8,0.02]
[1756302391055,0.108,4632.1,4632.0,2.15889464]
[1756302391253,0.108,4632.1,4632.0,7.46919464]
[1756302391458,0.108,4632.1,4631.8,0.02]
[1756302391672,0.108,4632.1,4632.0,2.15889464]
[1756302391983,0.108,4631.9,4631.8,2.17898786]
[1756302392571,0.108,4632.1,4632.0,2.15889464]
[1756302392774,0.01539762,4633.8,4632.0,1.23567714]
[1756302392980,1.9979128,4634.1,4632.0,1.23567714]
[1756302392981,0.47159762,4634.7,4632.1,3.0]
[1756302393139,0.47159762,4634.7,4632.8,0.108]
[1756302393474,0.108,4633.6,4633.0,2.15842866]
[1756302393638,0.108,4633.6,4633.5,2.15819574]
[1756302393840,0.33788758,4634.9,4633.5,5.05581957]
[1756302394067,0.33788758,4634.9,4633.7,2.15810259]
[1756302394230,0.022,4635.8,4634.8,0.108]
[1756302394429,0.108,4635.4,4635.3,2.15735766]
[1756302395160,0.108,4635.4,4634.8,0.108]
[1756302395161,0.0212,4635.8,4635.5,2.15725156]